[Event "44th Chess Olympiad Open 2022"]
[Site "Chennai"]
[Date "2022.08.01"]
[Round "4.27"]
[White "Amin, Bassem"]
[Black "Bwalya, Gillan"]
[Result "1/2-1/2"]
[WhiteElo "2680"]
[BlackElo "2396"]
[Annotator "TA"]
[PlyCount "108"]
[EventDate "2022.??.??"]
[TimeControl "60"]

{[%evp 21,108,12,10,0,0,0,20,3,7,0,8,-18,0,0,0,0,0,0,0,0,0,0,0,0,0,0,0,0,0,0,0,
0,0,0,0,0,5,0,6,0,7,0,10,0,0,0,4,3,6,10,8,2,7,0,7,8,8,8,8,8,8,0,0,0,6,6,8,0,0,
0,0,0,0,0,0,4,4,0,0,0,0,0,0,0,0,0,0,0,0]} 1. e4 {[%emt 0:01:07]} e5 {[%emt 0:
00:00]} 2. Nf3 {[%emt 0:00:09]} Nc6 {[%emt 0:00:12]} 3. Bc4 {[%emt 0:00:08]}
Bc5 {[%emt 0:01:17]} 4. O-O {[%emt 0:01:19]} Nf6 {[%emt 0:01:47]} 5. d3 {
[%emt 0:00:06]} O-O {[%emt 0:01:44]} 6. h3 {[%emt 0:00:11]} h6 {[%emt 0:01:48]}
7. Re1 {[%emt 0:00:08]} d6 {[%emt 0:00:31]} 8. c3 {[%emt 0:00:10]} a6 {[%emt 0:
00:00]} 9. Nbd2 {[%emt 0:02:10][%cal Yb1d2,Yd2f1,Yf1g3]} Ba7 {[%emt 0:00:00]}
10. Bb3 {[%emt 0:00:21]} Be6 {[%emt 0:02:09]} 11. Nf1 {[%emt 0:03:56]} Re8 {
[%emt 0:04:52] The position is equal.} 12. Bc2 {[%emt 0:00:32] C54: Giuoco
Piano: 4 c3 Nf6, main lines with 5 d4 and 5 d3.} d5 {[%emt 0:06:47]} 13. exd5
$1 {[%emt 0:00:07] 13.exd5 is better than 13.Qe2.} Bxd5 {[%emt 0:00:41]} 14.
Ng3 {[%emt 0:00:08]} Nd7 {[%emt 0:02:09][%cal Yf6d7,Yd7f8,Yf8g6,Yg6f4] [#]} 15.
Qe2 $146 {[%emt 0:17:34]} ({Predecessor:} 15. b4 Nf8 16. a4 b5 17. Be3 Bxe3 18.
Rxe3 Ng6 19. Qe1 Nf4 20. Ne2 Ng6 21. Ng3 {0-1 (47) Ganguly, S (2652)-Inarkiev,
E (2660) Berlin 2015}) 15... Nf8 {[%emt 0:04:43]} (15... Re6 {is interesting.}
16. Nf5 Ne7 17. N3h4 Nxf5 18. Nxf5 Nf6) 16. Be3 {[%emt 0:00:00]} Ng6 {[%emt 0:
11:33][%cal Yc6d4]} (16... Nd4 {seems wilder.} 17. cxd4 exd4 18. Nxd4 Bxd4 19.
Qg4 Bxb2 20. Rab1 Bc3) 17. Bxa7 {[%emt 0:02:41]} Nxa7 {[%emt 0:00:59]} 18. d4 {
[%emt 0:06:44]} exd4 {[%emt 0:12:43]} 19. Qxe8+ {[%emt 0:00:21]} Qxe8 {[%emt 0:
00:08]} 20. Rxe8+ {[%emt 0:00:04]} Rxe8 {[%emt 0:00:00]} 21. Nxd4 {[%emt 0:00:
02]} Nf4 {[%emt 0:01:06]} 22. f3 {[%emt 0:00:14]} Nc6 {[%emt 0:07:22]} 23. Nxc6
{[%emt 0:05:03]} Bxc6 {[%emt 0:00:17]} 24. Rd1 {[%emt 0:00:10]} Ne2+ {[%emt 0:
01:17]} 25. Kf2 {[%emt 0:00:37]} Nxg3 {[%emt 0:00:00]} 26. Kxg3 $11 {[%emt 0:
00:02] Endgame KRB-KRB} Kf8 {[%emt 0:00:00]} 27. Kf2 {[%emt 0:00:35] Prevents
Re2+.} Ke7 {[%emt 0:00:32]} 28. Bb3 {[%emt 0:02:54]} Ra8 {[%emt 0:01:01]} 29.
h4 {[%emt 0:01:20]} Rf8 {[%emt 0:00:00]} 30. Rd4 {[%emt 0:00:41]} Ra8 {[%emt 0:
03:00]} 31. Kg3 {[%emt 0:07:01]} Be8 {[%emt 0:01:56]} 32. Rb4 {[%emt 0:08:11]}
Bc6 {[%emt 0:00:33]} 33. Rg4 {[%emt 0:02:13]} Kf8 {[%emt 0:00:28]} 34. Rd4 {
[%emt 0:00:08]} Re8 {[%emt 0:00:00]} 35. Kf2 {[%emt 0:00:21]} Re7 {[%emt 0:00:
27]} 36. a4 {[%emt 0:01:06]} Rd7 {[%emt 0:00:40]} 37. Ke3 {[%emt 0:00:19]} Ke7
{[%emt 0:01:57]} 38. a5 {[%emt 0:00:00]} g5 {[%emt 0:03:54]} 39. hxg5 {[%emt 0:
06:17]} hxg5 {[%emt 0:00:08]} 40. Rxd7+ {[%emt 0:00:22]} Bxd7 {[%emt 0:00:09]
KB-KB} 41. Kd4 {[%emt 0:30:03]} b6 {[%emt 0:30:51]} 42. Bc4 {[%emt 0:00:16]}
Bc8 {[%emt 0:01:38]} 43. b4 {[%emt 0:00:00]} f6 {[%emt 0:00:18]} 44. f4 {
[%emt 0:00:00]} gxf4 {[%emt 0:00:00]} 45. Ke4 {[%emt 0:00:56]} Kd6 {[%emt 0:00:
00]} 46. Kxf4 {[%emt 0:00:16]} c5 {[%emt 0:00:00]} 47. axb6 {[%emt 0:00:31] [#]
And now Bd3 would win.} cxb4 {[%emt 0:00:00]} 48. cxb4 {[%emt 0:00:04]
Strongly threatening Bd3.} Kc6 {[%emt 0:00:00]} 49. Bxa6 {[%emt 0:03:48]} Bxa6
{[%emt 0:00:00]} 50. Kf5 {[%emt 0:00:02]} Kxb6 {[%emt 0:00:00]} 51. Kxf6 {
[%emt 0:00:02] KB-KPP} Be2 {[%emt 0:00:00]} 52. Kf5 {[%emt 0:00:04]} Kb5 {
[%emt 0:00:00]} 53. g4 {[%emt 0:00:00]} Bxg4+ {[%emt 0:00:00]} 54. Kxg4 {
[%emt 0:00:02]} Kxb4 {[%emt 0:00:00] An even fight not without its subleties.
Weighted Error Value: White=0.03 (flawless) /Black=0.02 (flawless)} 1/2-1/2

[Event "44th Chess Olympiad Open 2022"]
[Site "Chennai"]
[Date "2022.08.01"]
[Round "4.27"]
[White "Hesham, Abdelrahman"]
[Black "Phiri, Richmond"]
[Result "0-1"]
[WhiteElo "2386"]
[BlackElo "2293"]
[Annotator "TA"]
[PlyCount "68"]
[EventDate "2022.??.??"]
[TimeControl "60"]

{[%evp 22,68,24,0,10,1,24,20,28,18,14,-6,0,0,-6,-17,-8,-19,-10,-14,-14,-20,-8,
-17,0,-21,3,-125,-132,-317,-302,-302,-303,-385,-387,-672,-672,-661,-650,-2027,
-1798,-1970,-1944,-1905,-1905,-2315,-2166,-2197,-2045]} 1. d4 {[%emt 0:00:24]}
Nf6 {[%emt 0:00:10]} 2. c4 {[%emt 0:00:05]} g6 {[%emt 0:00:08]} 3. Nc3 {
[%emt 0:00:39]} d5 {[%emt 0:00:05]} 4. cxd5 {[%emt 0:06:11]} Nxd5 {[%emt 0:00:
00]} 5. e4 {[%emt 0:00:02]} Nxc3 {[%emt 0:00:06]} 6. bxc3 {[%emt 0:00:02]} Bg7
{[%emt 0:00:07]} 7. Bc4 {[%emt 0:00:03]} c5 {[%emt 0:00:05]} 8. Ne2 {[%emt 0:
00:00]} O-O {[%emt 0:00:05]} 9. O-O {[%emt 0:00:03]} Nc6 {[%emt 0:00:05]} 10.
Be3 {[%emt 0:00:03]} Na5 {[%emt 0:00:14] 10...Bg4 is the modern continuation.}
11. Bd3 {[%emt 0:00:07]} b6 {[%emt 0:00:05]} 12. Qd2 {[%emt 0:00:16]} e5 {
[%emt 0:00:31] D87: Exchange Grünfeld: Classical Line: Variations without ...
cxd4.} 13. Bg5 {[%emt 0:00:18]} f6 {[%emt 0:06:12]} 14. Be3 {[%emt 0:00:12] [#]
} Qe7 $146 {[%emt 0:51:20] The position is equal.} ({Predecessor:} 14... f5 15.
Bg5 Qd6 16. dxe5 Bxe5 17. f4 Bg7 18. e5 Qd5 19. Rad1 Bb7 20. Ng3 h6 {1-0 (43)
Korobov,A (2660)-Kovchan,A (2558) Kiev 2011}) 15. dxc5 {[%emt 0:20:41]} bxc5 {
[%emt 0:00:06][%cal Yb6c5,Yc5c4,Yc4d3,Yd3d2]} 16. Qb2 {[%emt 0:00:33]} (16. c4
$5 {[%cal Rd2a5]} Nc6 17. Nc3 $14) 16... c4 {[%emt 0:14:52]} 17. Bc2 {[%emt 0:
00:29]} Bg4 {[%emt 0:00:11]} 18. Qb5 {[%emt 0:14:04]} Bxe2 {[%emt 0:00:00]} 19.
Rfe1 {[%emt 0:03:36] Strongly threatening Bc5.} Bd3 $1 {[%emt 0:03:50]} 20.
Bxd3 {[%emt 0:00:09]} cxd3 {[%emt 0:00:02]} 21. Qxa5 {[%emt 0:00:13]} Rfd8 {
[%emt 0:00:13] Inhibits Qd5+.} 22. Rab1 $1 {[%emt 0:00:15]} f5 {[%emt 0:00:00]}
23. Rb5 {[%emt 0:24:26]} Rd7 {[%emt 0:03:09]} 24. f3 {[%emt 0:02:46]} (24. Bd2
$11 {keeps the balance.}) 24... fxe4 $40 {[%emt 0:02:45] White is in trouble.}
25. fxe4 {[%emt 0:00:02] Now White is beyond hope.} (25. Rd5 $17 {might work
better.}) 25... d2 $19 {[%emt 0:00:17][%cal Rd2e1]} 26. Rd1 {[%emt 0:00:52] [#]
} Qh4 $1 {[%emt 0:00:06] ( -> ...Qe1+)} 27. Bf2 {[%emt 0:00:00] Inhibits Qe1+.}
Qxe4 {[%emt 0:00:12] ...Rf8 is the strong threat.} 28. Qa3 {[%emt 0:00:20]} (
28. Qa6 Qd3 29. Qe6+ Kh8 30. Rb2) 28... Qe2 {[%emt 0:04:07] Black is clearly
winning.} 29. Rbb1 {[%emt 0:01:38]} Rf7 {[%emt 0:00:33]} 30. Qc5 {[%emt 0:00:
48]} Bh6 {[%emt 0:00:28] Prevents Qe3. And now ...Raf8 would win.} 31. Kh1 {
[%emt 0:06:09]} Qxf2 {[%emt 0:00:13]} 32. Qc4 {[%emt 0:00:02]} Raf8 {[%emt 0:
01:30][%cal Ye5e4] aiming for ...e4!} 33. Rf1 {[%emt 0:00:15] [#]} Qc5 $3 {
[%emt 0:01:00]} 34. Qe6 {[%emt 0:01:19]} (34. Qb3 Kg7) 34... Kg7 {[%emt 0:00:
14] Weighted Error Value: White=0.79/Black=0.04 (flawless)} 0-1

[Event "44th Chess Olympiad Open 2022"]
[Site "Chennai"]
[Date "2022.08.01"]
[Round "4.27"]
[White "Mwali, Chitumbo"]
[Black "Fawzy, Adham"]
[Result "0-1"]
[WhiteElo "2320"]
[BlackElo "2471"]
[Annotator "TA"]
[PlyCount "92"]
[EventDate "2022.??.??"]
[TimeControl "60"]

{[%evp 11,92,4,13,6,13,0,9,0,0,-6,0,0,1,0,27,10,48,0,-7,-20,0,-16,0,0,0,-20,
-20,-33,-14,-21,-11,-48,-53,-80,-39,-25,-39,-46,-41,-66,-77,-133,-131,-166,
-164,-229,-169,-162,-159,-202,-66,-70,-86,-69,-53,-72,-96,-879,-205,-340,-338,
-347,-347,-342,-337,-331,-326,-345,-345,-334,-227,-747,-741,-2817,-911,-905,
-905,-1062,-990,-1011,-953,-933,-904]} 1. Nf3 {[%emt 0:00:02]} c5 {[%emt 0:00:
00]} 2. c4 {[%emt 0:00:08]} Nc6 {[%emt 0:00:21]} 3. g3 {[%emt 0:00:38]} g6 {
[%emt 0:00:08]} 4. Bg2 {[%emt 0:00:04]} Bg7 {[%emt 0:00:08]} 5. Nc3 {[%emt 0:
00:00]} d6 {[%emt 0:00:20]} 6. O-O {[%emt 0:11:08]} Bf5 {[%emt 0:03:22] 6...e6
is the modern continuation.} 7. d3 {[%emt 0:09:33] A37: Symmetrical English vs
...g6:4 Bg2 Bg7 5 Nf3.} Qd7 {[%emt 0:00:32]} 8. Nd5 {[%emt 0:02:15]} Nf6 {
[%emt 0:06:50]} 9. Rb1 {[%emt 0:08:25] The position is equal.} O-O {[%emt 0:00:
00]} 10. a3 {[%emt 0:14:18]} Rab8 {[%emt 0:05:06]} 11. b4 {[%emt 0:08:25]} cxb4
{[%emt 0:04:02]} 12. Nxb4 {[%emt 0:08:52] [#]} e5 $146 {[%emt 0:10:49]} ({
Predecessor:} 12... Bg4 13. Be3 Rfc8 14. Nd4 Nxb4 15. Rxb4 e5 16. Nb5 b6 17.
Nc3 h6 18. Qd2 Kh7 {½-½ (42) Muthaiah,A (2291)-Satyapragyan,S (2445)
Bhubaneswar 2016}) 13. Be3 {[%emt 0:05:38]} Nxb4 {[%emt 0:04:17]} 14. Rxb4 {
[%emt 0:00:18]} ({White should try} 14. axb4 $14 Rbc8 15. Ra1) 14... b6 $11 {
[%emt 0:00:11]} 15. Re1 {[%emt 0:12:55]} Qc7 {[%emt 0:03:15]} 16. Bg5 {[%emt 0:
00:00]} Nd7 {[%emt 0:01:37]} 17. Nd2 {[%emt 0:00:35]} Nc5 {[%emt 0:02:07]} 18.
Be3 {[%emt 0:02:14]} Be6 {[%emt 0:07:40]} 19. Nb1 {[%emt 0:05:43]} e4 {[%emt 0:
00:00]} 20. d4 {[%emt 0:02:17]} Na6 {[%emt 0:02:51]} 21. Rb2 {[%emt 0:00:56]}
f5 $1 {[%emt 0:03:00]} (21... Qxc4 22. Bxe4 Qc7 23. Qa4 $11) 22. Nd2 {[%emt 0:
00:00]} Nc5 {[%emt 0:00:53] Black is more active.} (22... Bxc4 23. Qa4 d5 24.
Bf4 $16) 23. Rb1 {[%emt 0:00:20]} Nd7 {[%emt 0:00:32]} 24. Qa4 {[%emt 0:00:19]}
Nf6 {[%emt 0:00:17]} 25. h3 {[%emt 0:00:09] Against Ng4} Nh5 {[%emt 0:00:43]}
26. Rbc1 {[%emt 0:01:11]} (26. Qb4 $142) 26... Qe7 $17 {[%emt 0:07:26]} 27. c5
{[%emt 0:00:28] [#]} d5 $1 {[%emt 0:00:32]} 28. c6 {[%emt 0:00:31]} (28. cxb6
$142 Rxb6 29. Rb1) 28... Qc7 {[%emt 0:00:29]} 29. Qb3 {[%emt 0:00:29]} Rbe8 {
[%emt 0:02:49]} ({Worse is} 29... f4 30. Bxf4 (30. gxf4 Rbe8 $15) 30... Nxf4
31. gxf4 $15) 30. Nb1 {[%emt 0:00:17]} Nxg3 {[%emt 0:05:33]} 31. fxg3 $15 {
[%emt 0:00:47]} Qxg3 {[%emt 0:00:04]} 32. Nd2 {[%emt 0:00:30]} f4 {[%emt 0:00:
00]} 33. Bf2 {[%emt 0:00:13]} Qg5 {[%emt 0:00:17][%cal Yf4f3] [#] Hoping for ..
.f3!} 34. c7 $2 {[%emt 0:00:50] This move loses the game for White.} (34. Kh2
$17) 34... e3 $2 $40 {[%emt 0:00:46] Black attacks with force.} (34... f3 35.
exf3 Bxh3 36. Qxd5+ Qxd5 37. Bxh3 Qg5+ 38. Kf1 Qxd2) 35. Nf3 {[%emt 0:00:31]} (
35. Bh4 $142 Qxh4 36. Nf3) 35... exf2+ $19 {[%emt 0:00:00]} 36. Kxf2 {[%emt 0:
00:12]} Qg3+ {[%emt 0:01:07]} 37. Kf1 {[%emt 0:00:01]} Kh8 {[%emt 0:00:59] And
now ...g5 would win.} ({But not} 37... Bxh3 $2 38. Qxd5+ Be6 39. Qc6 $19) 38.
Rc3 {[%emt 0:01:02]} Bxh3 {[%emt 0:02:20] Dancing on a razor blade.} 39. Bxh3 {
[%emt 0:00:01]} Qxh3+ {[%emt 0:00:02]} 40. Kf2 {[%emt 0:00:12]} g5 {[%emt 0:04:
45]} 41. Rg1 {[%emt 0:31:26]} (41. Rec1) 41... g4 {[%emt 0:32:12] Black is
clearly winning.} 42. Ne5 {[%emt 0:00:00]} g3+ {[%emt 0:00:00]} (42... f3 $142
43. exf3 Bxe5 44. dxe5 Qh2+ 45. Kf1 Qxe5 46. Qc2 gxf3 47. Qxh7+ Kxh7 48. Rh1+
Kg6 49. Rg1+ Kh5 50. Rh1+ Kg5 51. Rg1+ Kf4 52. Rg4+ Kxg4 53. c8=Q+ Rxc8 54.
Rc4+ dxc4 55. Kg1 Qe1+ 56. Kh2 Rh8#) 43. Ke1 {[%emt 0:00:00]} Qh2 {[%emt 0:00:
00]} 44. Rf1 {[%emt 0:00:00]} Bxe5 {[%emt 0:00:00]} 45. dxe5 {[%emt 0:00:00]}
g2 {[%emt 0:00:00]} 46. Rh3 {[%emt 0:00:00]} g1=Q {[%emt 0:00:00] Weighted
Error Value: White=0.73/Black=0.51} (46... gxf1=N 47. Kxf1 Qg3 48. Rxg3 fxg3+
49. Kg2 $16) 0-1

[Event "44th Chess Olympiad Open 2022"]
[Site "Chennai"]
[Date "2022.08.01"]
[Round "4.27"]
[White "Kabwe Timothy"]
[Black "Wageih, Kareim"]
[Result "1-0"]
[WhiteElo "2248"]
[BlackElo "2387"]
[Annotator "TA"]
[PlyCount "109"]
[EventDate "2022.??.??"]
[TimeControl "60"]

{[%evp 9,109,2,17,-7,-1,-1,-1,0,0,-4,-5,0,0,-6,16,0,8,-16,108,106,94,100,98,98,
110,73,73,73,73,73,74,64,78,83,113,109,130,126,137,110,192,162,152,156,194,206,
205,200,287,291,250,243,235,244,244,244,244,245,213,198,340,333,312,296,346,
339,347,326,358,314,375,358,341,312,11075,11050,9114,7120,29966,29967,29967,
29967,29961,29961,6822,4732,29974,29974,29976,29977,29977,29976,29976,29977,
29976,29977,29982,29983,29983,29984,29986,29985]} 1. d4 {[%emt 0:00:13]} Nf6 {
[%emt 0:00:39]} 2. Nf3 {[%emt 0:00:24]} c5 {[%emt 0:00:05]} 3. c3 {[%emt 0:00:
00]} d5 {[%emt 0:00:18]} 4. Bf4 {[%emt 0:01:20]} Nc6 {[%emt 0:00:15]} 5. e3 {
[%emt 0:01:32]} Nh5 {[%emt 0:00:15]} 6. Bg3 {[%emt 0:00:21] D02:1 d4 d5 2 Nf3
sidelines, including 2...Nf6 3 g3 and 2...Nf6 3 Bf4.} Qb6 {[%emt 0:00:50]} 7.
Qb3 {[%emt 0:06:00]} Nxg3 {[%emt 0:00:51]} 8. hxg3 {[%emt 0:01:28] The
position is equal.} c4 {[%emt 0:16:52]} 9. Qc2 {[%emt 0:00:26]} g6 {[%emt 0:00:
00]} 10. e4 {[%emt 0:01:21] Prevents Bf5.} e6 {[%emt 0:03:00]} 11. Nbd2 {
[%emt 0:01:15] [#]} Qc7 $146 {[%emt 0:00:32]} ({Predecessor:} 11... Bd7 12. Be2
Bg7 13. e5 f6 14. Rxh7 Rxh7 15. Qxg6+ Kf8 16. Qxh7 fxe5 17. Ng5 Qd8 {1-0 (35)
Le,T (2485)-Brown,M (2514) Chess.com INT 2017}) 12. Be2 {[%emt 0:01:33]} Rb8 {
[%emt 0:00:35]} 13. Ng5 {[%emt 0:01:32]} Be7 {[%emt 0:14:45]} (13... h6 $11)
14. Rxh7 $16 {[%emt 0:04:01]} Rxh7 {[%emt 0:00:05]} 15. Nxh7 {[%emt 0:00:08]}
b5 {[%emt 0:09:25]} 16. a3 {[%emt 0:02:23] Inhibits b4.} a5 {[%emt 0:13:39]}
17. f4 {[%emt 0:00:46]} b4 {[%emt 0:03:19]} 18. axb4 {[%emt 0:00:20]} axb4 {
[%emt 0:00:04]} 19. e5 {[%emt 0:00:27]} Qb6 {[%emt 0:02:10]} 20. Nf3 {[%emt 0:
00:00] White is more active.} Bd7 {[%emt 0:06:17]} 21. g4 {[%emt 0:00:43]} bxc3
{[%emt 0:07:03]} 22. bxc3 {[%emt 0:00:11]} Qb3 {[%emt 0:00:08]} 23. Qd2 {
[%emt 0:00:59]} Kd8 {[%emt 0:08:54][%cal Yc6b4]} 24. Nf6 {[%emt 0:00:37]} Ba3 {
[%emt 0:00:59] [#]} (24... Kc8 $16 {was called for.}) 25. Bd1 $1 $18 {[%emt 0:
00:00]} Qb2 {[%emt 0:00:16]} 26. Ra2 {[%emt 0:00:39]} Qc1 {[%emt 0:01:31][%cal
Yc6b4]} 27. Qxc1 {[%emt 0:01:50]} Bxc1 {[%emt 0:00:07] [#] This bishop pair is
nice.} 28. g3 {[%emt 0:00:12] aiming for Ra6.} Rb1 {[%emt 0:04:13]} (28... Kc7
$142 29. Nxd7 Kxd7) 29. Bc2 {[%emt 0:00:56]} Rb2 {[%emt 0:00:03]} 30. Rxb2 {
[%emt 0:04:33]} Bxb2 {[%emt 0:00:02]} 31. Kd2 {[%emt 0:00:14] Hoping for Ng5.}
Na7 {[%emt 0:04:00]} 32. Nxd7 {[%emt 0:03:44]} Kxd7 {[%emt 0:00:00] Endgame
KBN-KBN} 33. Ba4+ {[%emt 0:00:22]} Ke7 {[%emt 0:00:08]} 34. Nh4 {[%emt 0:00:17]
Black must now prevent f5.} Nc8 {[%emt 0:01:03]} (34... Ba3 {was worth a try.}
35. f5 g5 36. f6+ Kd8) 35. f5 {[%emt 0:08:15]} gxf5 {[%emt 0:00:00]} 36. gxf5 {
[%emt 0:00:15]} exf5 {[%emt 0:01:04]} 37. Nxf5+ {[%emt 0:00:00]} Ke6 {[%emt 0:
00:09]} 38. Ng7+ {[%emt 0:00:17]} Ke7 {[%emt 0:00:09]} 39. Bc6 {[%emt 0:01:12]}
Nb6 {[%emt 0:00:00]} 40. Nh5 {[%emt 0:00:20] Against f6} Ba3 {[%emt 0:01:46]}
41. Nf4 {[%emt 0:30:18]} f6 $2 {[%emt 0:01:15]} (41... Kf8 42. Bxd5 Ke7) 42.
Nxd5+ {[%emt 0:00:00]} Nxd5 {[%emt 0:00:09]} 43. Bxd5 {[%emt 0:00:00]} fxe5 {
[%emt 0:00:31]} 44. dxe5 {[%emt 0:00:00] KB-KB} Bc5 {[%emt 0:00:26]} 45. Bxc4 {
[%emt 0:00:00]} Bf2 {[%emt 0:00:07]} 46. g4 {[%emt 0:00:00]} Bg3 {[%emt 0:00:
22]} 47. e6 {[%emt 0:00:00] Intending Bd5 and mate.} Bd6 {[%emt 0:00:30]} 48.
Kd3 {[%emt 0:00:00] White mates.} Kf6 {[%emt 0:02:38]} 49. Ke4 {[%emt 0:00:00]}
Ba3 {[%emt 0:03:00]} 50. Kd5 {[%emt 0:00:00]} Bb2 {[%emt 0:05:07]} 51. Kd4 {
[%emt 0:00:00]} Ba3 {[%emt 0:01:00]} 52. Bd5 {[%emt 0:00:00]} Kg5 {[%emt 0:04:
56]} 53. c4 {[%emt 0:00:00]} Bb2+ {[%emt 0:02:55]} 54. Kc5 {[%emt 0:00:00]}
Kxg4 {[%emt 0:00:20]} 55. Kc6 {[%emt 0:00:00] Weighted Error Value: White=0.06
(flawless) /Black=0.53} 1-0

[Event "44th Chess Olympiad Open 2022"]
[Site "Chennai"]
[Date "2022.08.01"]
[Round "4.28"]
[White "Djukic, Nikola"]
[Black "Arvelo Leo, Gian Carlo"]
[Result "1/2-1/2"]
[WhiteElo "2526"]
[BlackElo "2176"]
[Annotator "TA"]
[PlyCount "88"]
[EventDate "2022.??.??"]
[TimeControl "60"]

{[%evp 23,88,33,32,27,40,28,18,14,23,8,16,0,4,0,8,0,0,3,21,0,43,0,0,0,0,0,0,0,
0,0,0,0,0,0,0,0,2,0,0,0,0,0,0,0,0,0,0,0,0,0,0,0,0,0,0,0,0,0,0,0,0,0,0,0,0,0,0]
} 1. e4 c5 2. Nf3 {[%cal Yg1f3,Yf3d4,Yd4b5,Yb5c3,Yc3e2]} e6 3. d4 cxd4 4. Nxd4
Nf6 5. Nc3 Nc6 6. Ndb5 Bb4 7. a3 Bxc3+ 8. Nxc3 d5 9. exd5 exd5 10. Bd3 O-O 11.
O-O d4 12. Ne2 Bg4 13. Re1 {13.Bg5 is setting a new trend. B45: Sicilian Four
Knights.} Re8 14. h3 Bh5 15. Bg5 Qd6 16. Bxf6 (16. Bf4 {with more
complications.} Qd7 17. Qd2 Ne4 18. Bxe4 Rxe4 19. f3) 16... Qxf6 17. Qd2 Bxe2
18. Rxe2 Rxe2 19. Qxe2 {[#]} g6 $146 ({Predecessor:} 19... Ne5 20. Re1 Ng6 21.
Qe4 Qb6 22. b3 Rd8 23. a4 Qc6 24. Qxc6 bxc6 25. h4 Kf8 {0-1 (51) Charles,G 
(2119)-Huddleston,H (1746) West Ryde 2004}) 20. Re1 Rc8 21. Qe4 (21. Qg4 $5 {
[%cal Rg4c8]} Rc7 22. Re8+ Kg7 23. Qe4 $14) 21... Rc7 {[#] Threatens to win
with ...Re7.} 22. Qe8+ Kg7 {The position is equal.} 23. Re4 h6 24. g3 Qd6 25.
h4 h5 26. Re2 Qf6 27. Kg2 Qd6 28. f4 Re7 29. Rxe7 Nxe7 $11 {[%cal Yc6e7,Ye7d5,
Yd5f6] Endgame KQB-KQN} 30. Kf3 Qe6 31. Qb5 Nd5 32. Be4 Nf6 33. Qe5 Qg4+ 34.
Kf2 Qd1 {[#] Hoping for ...Qd2+.} 35. Bd3 {Active counter play!} Qd2+ 36. Kf1
Qh2 37. f5 Qh1+ 38. Kf2 Qh2+ 39. Ke1 Qh1+ 40. Kd2 Qg2+ 41. Kd1 Qf3+ 42. Ke1 {
And now fxg6 would win.} Qh1+ 43. Ke2 {Strongly threatening fxg6.} Qg2+ 44. Kd1
{fxg6 is the strong threat.} Qf3+ {Weighted Error Value: White=0.03 (flawless)
/Black=0.03 (flawless)} 1/2-1/2

[Event "44th Chess Olympiad Open 2022"]
[Site "Chennai"]
[Date "2022.08.01"]
[Round "4.28"]
[White "Blagojevic, Dragisa"]
[Black "Mazara Ruiz, Adan Manuel"]
[Result "1/2-1/2"]
[WhiteElo "2499"]
[BlackElo "2286"]
[Annotator "TA"]
[PlyCount "87"]
[EventDate "2022.??.??"]
[TimeControl "60"]

{[%evp 23,87,3,40,40,49,67,85,43,46,49,52,38,37,41,27,21,55,52,56,64,64,63,58,
59,72,63,51,31,16,33,47,0,0,0,0,0,14,14,25,0,0,0,0,0,0,0,0,-9,0,0,0,0,0,0,0,-4,
-2,-4,0,0,0,0,0,-5,-1,-6]} 1. d4 {[%emt 0:00:03]} Nf6 {[%emt 0:00:12]} 2. Nf3 {
[%emt 0:00:06]} e6 {[%emt 0:00:07]} 3. c4 {[%emt 0:00:10]} d5 {[%emt 0:00:11]}
4. Nc3 {[%emt 0:00:46]} Be7 {[%emt 0:02:39]} 5. cxd5 {[%emt 0:03:50]} exd5 {
[%emt 0:03:53]} 6. Bg5 {[%emt 0:00:07]} c6 {[%emt 0:02:52]} 7. Qc2 {[%emt 0:00:
00]} O-O {[%emt 0:05:54]} 8. e3 {[%emt 0:00:32]} Re8 {[%emt 0:00:55]} 9. Bd3 {
[%emt 0:01:19]} Nbd7 {[%emt 0:03:14][%cal Yb8d7,Yd7f8,Yf8e6,Ye6g7,Yg7f5]} 10.
O-O {[%emt 0:00:27]} Nf8 {[%emt 0:00:02]} 11. Rab1 {[%emt 0:02:06]} a5 {
[%emt 0:00:08]} 12. a3 {[%emt 0:00:51][%cal Ya2a3,Ya3b4]} g6 {[%emt 0:08:01]}
13. b4 {[%emt 0:07:51] D36: Queen's Gambit Declined: Exchange Variation: Main
line (5 Bg5 c6 6 Qc2).} Ne6 {[%emt 0:00:00]} 14. Bh4 $1 {[%emt 0:02:39]} Ng7 {
[%emt 0:00:00]} 15. Na4 {[%emt 0:10:32] White is more active. White is better.}
axb4 {[%emt 0:20:08]} 16. axb4 {[%emt 0:00:10]} Bf5 {[%emt 0:00:43] [#]
Threatens to win with ...Bxd3.} 17. Bxf5 {[%emt 0:20:55]} Nxf5 {[%emt 0:00:03]}
18. Bxf6 {[%emt 0:00:12]} Bxf6 {[%emt 0:00:06]} 19. b5 {[%emt 0:01:10]} Re7 {
[%emt 0:20:20]} 20. bxc6 {[%emt 0:03:06]} bxc6 {[%emt 0:00:00]} 21. Qxc6 {
[%emt 0:10:57] Black must now prevent Nb6.} Rc7 {[%emt 0:00:00]} 22. Qb5 {
[%emt 0:00:08]} Nd6 {[%emt 0:00:18]} 23. Qb3 {[%emt 0:06:50]} Rb7 {[#]} 24. Qc2
{[%emt 0:00:00] [#]} Rc7 $146 {[%emt 0:03:38]} ({Predecessor:} 24... Rxb1 25.
Rxb1 Nc4 26. Qd1 Qa5 27. Nc5 Be7 28. Nd3 f6 29. g3 Na3 30. Rb7 Ra7 31. Rxa7
Qxa7 {1-0 (44) Nisula,T-Alarvo,E Finland 1991}) 25. Qd1 {[%emt 0:00:00]} Ne4 {
[%emt 0:04:36]} 26. Qb3 {[%emt 0:09:54]} Rc4 {[%emt 0:03:33]} 27. Nc5 {[%emt 0:
01:01]} ({Weaker is} 27. Nb6 Rb8 28. h3 Nd6 $17) (27. Nb2 $1 $14 {might be
stronger.} Rc3 28. Qd1) 27... Nxc5 $11 {[%emt 0:02:19]} 28. dxc5 {[%emt 0:00:
07]} Rxc5 {[%emt 0:00:09]} 29. Rfd1 {[%emt 0:02:03]} Qa5 {[%emt 0:00:00]} 30.
g3 {[%emt 0:02:38]} Kg7 {[%emt 0:00:16]} 31. Rd2 {[%emt 0:01:07]} d4 {[%emt 0:
01:51] The position is equal.} 32. exd4 {[%emt 0:02:44]} Rc3 {[%emt 0:00:11]}
33. Qd1 {[%emt 0:02:09]} Qd5 {[%emt 0:05:53]} 34. Ne1 {[%emt 0:00:00][%cal
Yf3e1,Ye1g2,Yg2f4]} h5 {[%emt 0:01:07]} 35. Ng2 {[%emt 0:00:00]} Bg5 {[%emt 0:
01:26]} 36. Rd3 {[%emt 0:03:59]} Rxd3 {[%emt 0:00:40]} 37. Qxd3 {[%emt 0:00:06]
} Ra4 {[%emt 0:00:16]} 38. Rd1 {[%emt 0:03:11]} Bf6 {[%emt 0:00:12][%cal Ra4d4]
} 39. Nf4 {[%emt 0:02:16]} Qxd4 {[%emt 0:00:09]} 40. Qc2 {[%emt 0:02:05]} Qxd1+
{[%emt 0:00:52]} 41. Qxd1 {[%emt 0:30:09]} Ra1 {[%emt 0:30:04]} 42. Qxa1 {
[%emt 0:00:15]} ({Wrong is} 42. Nxh5+ $2 gxh5 43. Qf1 Rxf1+ $19) 42... Bxa1 {
[%emt 0:00:01]} 43. Kg2 {[%emt 0:00:23]} Bd4 {[%emt 0:00:00]} 44. Kf3 {[%emt 0:
01:30] Weighted Error Value: White=0.07 (flawless) / Black=0.06 (flawless)}
1/2-1/2